[Event "1st Jeddah Young Masters 2024"]
[Site "Jeddah"]
[Date "2024.01.30"]
[Round "9.3"]
[White "Oro, Faustino"]
[Black "Rey Martinez, Jaime"]
[Result "0-1"]
[ECO "A37"]
[WhiteElo "2357"]
[BlackElo "2342"]
[Annotator "TA"]
[PlyCount "66"]
[EventDate "2024.01.24"]
[EventType "tourn"]
[SourceTitle "playchess.com"]
[Source "ChessBase"]
[SourceQuality "1"]
[TimeControl "5400+30"]

{[%evp 17,66,0,16,11,21,30,53,54,69,32,58,0,0,0,75,75,76,73,76,15,0,-10,-20,-52,-52,-127,-128,-137,-141,-133,-129,-159,-157,-268,-268,-412,-402,-677,-702,-641,-477,-477,-489,-492,-492,-486,-477,-561,-540,-540,-540]} 1. Nf3 {[%emt 0:00:02]} c5 {[%emt 0:00:41]} 2. c4 {[%emt 0:00:09]} g6 {[%emt 0:02:05]} 3. g3 {[%emt 0:00:10]} Bg7 {[%emt 0:00:39]} 4. Bg2 {[%emt 0:00:08]} Nc6 {[%emt 0:00:33]} 5. Nc3 {[%emt 0:00:12]} d6 {[%emt 0:03:01]} 6. O-O {[%emt 0:00:32]} e5 {[%emt 0:02:22]} 7. d3 {[%emt 0:00:15]} Nge7 {[%emt 0:00:51]} 8. a3 {[%emt 0:02:18]} O-O {[%emt 0:01:27]} 9. Rb1 {[%emt 0:01:10]} f5 {[%emt 0:02:39][%cal Bf7f5,Bf5f4][%mdl 32]} 10. Ne1 {[%emt 0:02:57][%cal Bf3e1,Be1c2,Bc2e3][%mdl 32]} a5 {[%emt 0:08:45]} 11. Nc2 {[%emt 0:01:59]} Be6 {[%emt 0:02:11]} 12. Bg5 {[%emt 0:03:46] White is slightly better.} Qd7 {[%emt 0:05:56]} 13. Ne3 {[%emt 0:04:10]} f4 {[%emt 0:05:06]} 14. Bxe7 {[%emt 0:00:47]} (14. Ned5 $14 Nc8 15. gxf4) 14... Nxe7 $11 {[%emt 0:00:41]} 15. Ned5 {[%emt 0:01:17]} Rab8 {[%emt 0:02:13]} (15... Nxd5 $11 16. Nxd5 Qd8) 16. b4 $16 {[%emt 0:05:33]} axb4 {[%emt 0:01:59]} 17. axb4 {[%emt 0:00:24]} Nxd5 {[%emt 0:05:08]} 18. Nxd5 {[%emt 0:05:01]} (18. Bxd5 Bxd5 19. Nxd5 Qh3 $14) (18. cxd5 $16 Bg4 19. bxc5) 18... b5 $11 {[%emt 0:03:20]} 19. bxc5 {[%emt 0:20:27]} dxc5 {[%emt 0:00:14]} 20. e3 {[%emt 0:01:43]} Kh8 {[%emt 0:03:32]} 21. exf4 {[%emt 0:04:32]} (21. Be4 $15) 21... Bxd5 $17 {[%emt 0:01:11]} 22. Bxd5 {[%emt 0:00:08]} exf4 {[%emt 0:00:07]} 23. Kg2 {[%emt 0:01:22] White is weak on the dark squares} b4 {[%emt 0:03:12]} 24. Be4 {[%emt 0:05:35]} Bd4 {[%emt 0:01:01] Black is more active.} 25. Rb3 {[%emt 0:07:20]} (25. f3 $17) 25... Rf6 $19 {[%emt 0:01:48][%cal Of4f3] ...f3+! would now be deadly.} 26. f3 {[%emt 0:00:43]} (26. Qf3 {was worth a try.}) 26... Ra6 {[%emt 0:01:13] ( -> ...Ra2+)} 27. Re1 {[%emt 0:00:23]} (27. Qd2 $142 Rf8 28. Rbb1) 27... Ra2+ {[%emt 0:03:42] Black is clearly winning.} 28. Re2 {[%emt 0:00:01]} Ra1 {[%emt 0:00:08]} 29. Rb1 {[%emt 0:00:08]} Rxb1 {[%emt 0:00:10]} 30. Qxb1 {[%emt 0:00:02]} b3 {[%emt 0:00:22]} 31. Bd5 {[%emt 0:01:42]} b2 {[%emt 0:00:50]} 32. Re6 {[%emt 0:01:56] [#]} Qxe6 $3 {[%emt 0:06:12][%mdl 512]} 33. Bxe6 {[%emt 0:00:10] [#]} Ra8 $1 {[%emt 0:00:03] Weighted Error Value: White=0.60/Black=0.20 (precise) .  Mistake:       	White=6     	Black=1      Inaccurate:     	White=2     	Black=1      OK:         	White=5     	Black=8      Best:        	White=1     	Black=3      Strong:       	---       	Black=1} 0-1

[Event "1st Jeddah Young Masters 2024"]
[Site "Jeddah"]
[Date "2024.01.30"]
[Round "9.4"]
[White "Pranav Vijay"]
[Black "Seemann, Jakub"]
[Result "1/2-1/2"]
[ECO "A01"]
[WhiteElo "2611"]
[BlackElo "2439"]
[Annotator "RC"]
[PlyCount "155"]
[EventDate "2024.01.24"]
[EventType "tourn"]
[SourceTitle "playchess.com"]
[Source "ChessBase"]
[SourceQuality "1"]
[TimeControl "5400+30"]

1. b3 {[%emt 0:01:00]} e5 {[%emt 1:31:00]} 2. Bb2 {[%emt 0:00:13]} Nc6 {[%emt 0:00:00]} 3. c4 {[%emt 0:00:06]} g6 {[%emt 0:00:00]} 4. Nf3 {[%emt 0:00:22]} Bg7 {[%emt 0:00:00]} 5. e3 {[%emt 0:00:09]} Nge7 {[%emt 0:00:00]} 6. d4 {[%emt 0:00:10]} exd4 {[%emt 0:00:00]} 7. Nxd4 {[%emt 0:00:10]} O-O {[%emt 0:00:00]} 8. Nxc6 {[%emt 1:32:20]} dxc6 {[%emt 0:03:30]} 9. Qxd8 {[%emt 0:00:00]} Rxd8 {[%emt 0:00:00]} 10. Bxg7 {[%emt 0:00:00]} Kxg7 {[%emt 0:00:00]} 11. Nc3 {[%emt 0:00:00]} Bf5 {[%emt 0:01:30]} 12. Be2 {[%emt 0:02:00]} Rd7 {[%emt 0:00:30]} 13. g4 {[%emt 0:00:00]} Bd3 {[%emt 0:00:30]} 14. Rd1 {[%emt 0:00:00]} Rad8 {[%emt 0:00:00]} 15. Rxd3 {[%emt 0:00:00]} Rxd3 {[%emt 0:00:00]} 16. Bxd3 {[%emt 0:00:00]} Rxd3 {[%emt 0:00:00]} 17. Ne4 {[%emt 0:00:00]} b6 {[%emt 0:00:00]} 18. h4 {[%emt 0:00:00]} h6 {[%emt 0:00:00]} 19. Ke2 {[%emt 0:00:00]} Rd8 {[%emt 0:00:00]} 20. f4 {[%emt 0:00:00]} h5 {[%emt 0:00:00]} 21. gxh5 {[%emt 0:00:00]} Nf5 {[%emt 0:00:00]} 22. hxg6 {[%emt 0:00:00]} Re8 {[%emt 0:00:00]} 23. Kf3 {[%emt 0:00:00]} Kxg6 {[%emt 0:00:00]} 24. h5+ {[%emt 0:00:00]} Kh6 {[%emt 0:00:00]} 25. Rh3 {[%emt 0:00:00]} Nxe3 {[%emt 0:00:00]} 26. Ng3 {[%emt 0:07:00]} Nc2 {[%emt 0:00:00]} 27. Nf5+ {[%emt 0:00:00]} Kh7 {[%emt 0:00:00]} 28. Rg3 {[%emt 0:00:00]} Kh8 {[%emt 0:00:00]} 29. h6 {[%emt 0:00:00]} Ne1+ {[%emt 0:00:00]} 30. Kf2 {[%emt 0:00:00]} Re4 {[%emt 0:00:00]} 31. Ng7 {[%emt 0:00:00]} Nc2 {[%emt 0:00:00]} 32. Kf3 {[%emt 0:00:00]} Re3+ {[%emt 0:00:00]} 33. Kg4 {[%emt 0:00:00]} Rxg3+ {[%emt 0:00:00]} 34. Kxg3 {[%emt 0:04:00]} Kh7 {[%emt 0:00:00]} 35. Nf5 {[%emt 0:00:00]} c5 {[%emt 0:00:00]} 36. Kf3 {[%emt 0:00:00]} Nb4 {[%emt 0:00:00]} 37. a4 {[%emt 0:00:00]} Nc2 {[%emt 0:00:00]} 38. Ke4 {[%emt 0:00:00]} Na1 {[%emt 0:00:00]} 39. Ke5 {[%emt 0:00:00]} Nxb3 {[%emt 0:00:00]} 40. Kf6 {[%emt 0:00:00]} Nd4 {[%emt 0:00:00]} 41. Ne3 {[%emt 0:00:00]} c6 {[%emt 0:14:00]} 42. Kxf7 {[%emt 0:00:00]} b5 {[%emt 0:00:00]} 43. f5 {[%emt 0:04:30]} bxa4 {[%emt 0:00:00]} 44. f6 {[%emt 0:00:00]} a3 {[%emt 0:00:00]} 45. Ke8 {[%emt 0:00:00]} a2 {[%emt 0:00:00]} 46. f7 {[%emt 0:00:00]} a1=Q {[%emt 0:00:00]} 47. f8=Q {[%emt 0:00:00]} Qg1 {[%emt 0:00:00]} 48. Qe7+ {[%emt 0:00:08]} Kxh6 {[%emt 0:00:00]} 49. Qh4+ {[%emt 0:00:28]} Kg6 {[%emt 0:00:00]} 50. Ng4 {[%emt 0:00:58]} Qc1 {[%emt 0:00:00]} 51. Qe7 {[%emt 0:01:22]} Qf4 {[%emt 0:00:00]} 52. Ne5+ {[%emt 0:01:34]} Kf5 {[%emt 0:00:00]} 53. Nd7 {[%emt 0:00:00]} Kg4 {[%emt 0:02:44]} 54. Ne5+ {[%emt 0:00:03]} Kg3 {[%emt 0:01:10]} 55. Qxc5 {[%emt 0:00:34]} Qe4 {[%emt 0:01:09]} 56. Kd7 {[%emt 0:00:40]} Qf5+ {[%emt 0:00:16]} 57. Ke7 {[%emt 0:00:02]} Qh7+ {[%emt 0:01:02]} 58. Kd6 {[%emt 0:00:25]} Qh6+ {[%emt 0:00:24]} 59. Kd7 {[%emt 0:00:17]} Qg7+ {[%emt 0:00:08]} 60. Kc8 {[%emt 0:00:16]} Qg8+ {[%emt 0:00:53]} 61. Kb7 {[%emt 0:00:17]} Qh7+ {[%emt 0:00:28]} 62. Ka6 {[%emt 0:00:34]} Qe4 {[%emt 0:00:03]} 63. Kxa7 {[%emt 0:00:40]} Kf4 {[%emt 0:00:04]} 64. Nd7 {[%emt 0:02:12]} Ke3 {[%emt 0:00:38]} 65. Ne5 {[%emt 0:00:00]} Kf4 {[%emt 0:00:29]} 66. Nf7 {[%emt 0:00:11]} Ke3 {[%emt 0:01:54]} 67. Nd6 {[%emt 0:00:20]} Qd3 {[%emt 0:00:13]} 68. Qg5+ {[%emt 0:00:27]} Ke2 {[%emt 0:00:06]} 69. Qg2+ {[%emt 0:00:37]} Kd1 {[%emt 0:00:11]} 70. Kb6 {[%emt 0:00:42]} Qd2 {[%emt 0:01:09]} 71. Qe4 {[%emt 0:00:32]} Qb4+ {[%emt 0:00:37]} 72. Kc7 {[%emt 0:00:01]} Qa5+ {[%emt 0:00:09]} 73. Kd7 {[%emt 0:00:46]} Qa7+ {[%emt 0:00:05]} 74. Kd8 {[%emt 0:00:07]} Qb6+ {[%emt 0:00:12]} 75. Kc8 {[%emt 0:00:23]} Qa6+ {[%emt 0:00:03]} 76. Kb8 {[%emt 0:00:05]} Qb6+ {[%emt 0:00:13]} 77. Nb7 {[%emt 0:00:02]} c5 {[%emt 0:00:43]} 78. Qe3 {[%emt 0:02:47]} 1/2-1/2

[Event "1st Jeddah Young Masters 2024"]
[Site "Jeddah"]
[Date "2024.01.30"]
[Round "9.5"]
[White "Francisco Guecamburu, Candela Be"]
[Black "Klimkowski, Jan"]
[Result "1/2-1/2"]
[ECO "B51"]
[WhiteElo "2295"]
[BlackElo "2531"]
[Annotator "TA"]
[PlyCount "71"]
[EventDate "2024.01.24"]
[EventType "tourn"]
[SourceTitle "playchess.com"]
[Source "ChessBase"]
[SourceQuality "1"]
[TimeControl "5400+30"]

{[%evp 9,71,5,20,11,18,12,16,25,16,10,16,0,39,8,30,0,31,33,25,0,10,-35,-31,-38,-22,-29,-44,-47,-25,-40,-41,-61,-60,-59,-32,-45,-35,-23,-35,-70,-62,-77,-73,-108,-51,-50,-39,-81,-65,-78,-81,-75,-82,-147,-169,-163,-139,-288,0,0,10,0,0,0]} 1. e4 {[%emt 0:01:19]} c5 {[%emt 0:00:05]} 2. Nf3 {[%emt 0:00:35]} d6 {[%emt 0:00:06]} 3. Bb5+ {[%emt 0:00:07]} Nd7 {[%emt 0:00:07]} 4. O-O {[%emt 0:00:08]} a6 {[%emt 0:00:03]} 5. Bd3 {[%emt 0:00:09]} Ngf6 {[%emt 0:00:08]} 6. c3 {[%emt 0:00:22]} e6 {[%emt 0:00:16]} 7. Bc2 {[%emt 0:03:06]} b5 {[%emt 0:00:37]} 8. d4 {[%emt 0:01:08]} Bb7 {[%emt 0:00:18]} 9. Re1 {[%emt 0:00:46]} Be7 {[%emt 0:00:20]} 10. e5 {[%emt 0:04:28]} dxe5 {[%emt 0:03:45]} 11. dxe5 {[%emt 1:23:52]} Nd5 {[%emt 0:06:34]} 12. a4 {[%emt 0:00:00]} h6 {[%emt 1:24:11]} 13. Qe2 {[%emt 0:00:00]} Bc6 {[%emt 0:00:00]} 14. Na3 {[%emt 0:00:00]} N7b6 {[%emt 0:00:00]} (14... b4 $5 15. Nb1 bxc3 $11) 15. c4 {[%emt 0:02:00]} Nxc4 {[%emt 0:00:00]} 16. Nxc4 {[%emt 0:00:00]} bxc4 {[%emt 0:00:00]} 17. Qxc4 {[%emt 0:00:00]} Nb4 {[%emt 0:00:00]} 18. Be4 {[%emt 0:00:00]} Bxe4 {[%emt 0:00:00]} 19. Qxe4 {[%emt 0:00:00]} Qd5 {[%emt 0:00:00]} 20. Bd2 {[%emt 0:00:00]} Nd3 {[%emt 0:04:00]} 21. Re2 {[%emt 0:00:00]} Rb8 {[%emt 0:00:00]} (21... Nxb2 $5 22. Rb1 Nc4 23. Qxd5 exd5 $15) 22. Bc3 {[%emt 0:00:00]} Qxe4 {[%emt 0:00:00]} 23. Rxe4 {[%emt 0:00:00]} O-O {[%emt 0:00:00]} (23... Nxb2 $2 {loses.} 24. Rb1 $18) 24. Rd1 {[%emt 0:00:00]} Nxb2 {[%emt 0:00:00]} 25. Rd7 {[%emt 0:00:00]} ({Not} 25. Rd2 $2 Nxa4 26. Ba5 Rb1+ 27. Re1 Rb5 $19) 25... Rfe8 $36 {[%emt 0:00:00][%mdl 2048] White is under strong pressure.} 26. Ra7 {[%emt 0:00:00]} Rb3 {[%emt 0:00:00]} ({Black should play} 26... Nd3 $17 {White must now prevent ...Rb1+.} 27. g3 Nb4) 27. Bxb2 $15 {[%emt 0:00:00]} Rxb2 {[%emt 0:00:00]} 28. Kf1 {[%emt 0:00:00][%cal Og2g3]} Bf8 {[%emt 0:00:00]} 29. Rxa6 {[%emt 0:00:00]} Rc8 {[%emt 0:00:00] And now ...c4 would win.} 30. Rc4 {[%emt 0:00:00]} Rd8 {[%emt 0:00:00]} 31. g3 {[%emt 0:00:05]} ({Better is} 31. g4) 31... Rd1+ $17 {[%emt 0:00:00]} 32. Kg2 {[%emt 0:00:22] [#]} Ra1 $1 {[%emt 0:00:00]} 33. Rf4 {[%emt 0:00:16] [#]} (33. g4 $17 {was worth a try.}) 33... Rb7 $2 {[%emt 0:00:00]} ({Black should try} 33... g5 $1 $19 {[%cal Rg5f4]} 34. Rf6 Be7 35. Rxh6 Kg7) 34. h4 $11 {[%emt 0:00:57] The position is equal.} Ra2 {[%emt 0:00:39]} 35. Ra8 {[%emt 0:02:07]} g6 {[%emt 0:00:22]} 36. Nh2 {[%emt 0:00:38] Weighted Error Value: White=0.19 (very precise) /Black=0.17 (very precise) .  Missed win:     	---       	Black=1      Mistake:       	White=2     	Black=1      Inaccurate:     	White=6     	Black=3      OK:         	White=7     	Black=16     Best:        	White=1     	---        Strong:       	---       	Black=1} 1/2-1/2